Workbook

Sheet Driftskostnader
B1: ="Årlige endrede driftskostnader for " &Oppsummering!B4:M4 -> Årlige endrede driftskostnader for <Prosjektnavn>
B2: 2
D4: Lav | E4: Sannsynlig | F4: Høy | G4: Forventet | H4: Varians | I4: Avvik
D5: a | E5: m | F5: b | G5: E(x) | H5: V(x) | I5: a% | J5: b%
B6: Driftskostnader | C6: Beskrivelse | D6: MNOK | E6: MNOK | F6: MNOK
G7: =IF(AND(D7<>"",F7<>""),IF(E7<>"",CHOOSE($B$2,(D7+3*E7+F7)/5,(D7+4*E7+F7)/6),(D7+F7)/2),E7) -> 0.0 | H7: =CHOOSE($B$2,(F7-D7)^2/25,(F7-D7)^2/36) -> 0.0 | I7: =IF(D7<>0, (1-D7/E7),"") ->  | J7: =IF(D7<>0, (F7/E7-1),"") -> 
G8: =IF(AND(D8<>"",F8<>""),IF(E8<>"",CHOOSE($B$2,(D8+3*E8+F8)/5,(D8+4*E8+F8)/6),(D8+F8)/2),E8) -> 0.0 | H8: =CHOOSE($B$2,(F8-D8)^2/25,(F8-D8)^2/36) -> 0.0 | I8: =IF(D8<>0, (1-D8/E8),"") ->  | J8: =IF(D8<>0, (F8/E8-1),"") -> 
G9: =IF(AND(D9<>"",F9<>""),IF(E9<>"",CHOOSE($B$2,(D9+3*E9+F9)/5,(D9+4*E9+F9)/6),(D9+F9)/2),E9) -> 0.0 | H9: =CHOOSE($B$2,(F9-D9)^2/25,(F9-D9)^2/36) -> 0.0 | I9: =IF(D9<>0, (1-D9/E9),"") ->  | J9: =IF(D9<>0, (F9/E9-1),"") -> 
G10: 0.0 | H10: 0.0
G11: 0.0 | H11: 0.0
G12: 0.0 | H12: 0.0
G13: 0.0 | H13: 0.0
G14: 0.0 | H14: 0.0
G15: 0.0 | H15: 0.0
G16: 0.0 | H16: 0.0
G17: 0.0 | H17: 0.0
G18: 0.0 | H18: 0.0
G19: 0.0 | H19: 0.0
G20: 0.0 | H20: 0.0
G21: 0.0 | H21: 0.0
G22: 0.0 | H22: 0.0
G23: 0.0 | H23: 0.0
G24: 0.0 | H24: 0.0
G25: 0.0 | H25: 0.0
G26: 0.0 | H26: 0.0
G27: 0.0 | H27: 0.0
G28: 0.0 | H28: 0.0
G29: 0.0 | H29: 0.0
G30: 0.0 | H30: 0.0
G31: 0.0 | H31: 0.0
G32: 0.0 | H32: 0.0
G33: 0.0 | H33: 0.0
G34: 0.0 | H34: 0.0
G35: 0.0 | H35: 0.0
G36: 0.0 | H36: 0.0
G37: 0.0 | H37: 0.0
G38: 0.0 | H38: 0.0
G39: 0.0 | H39: 0.0
G40: 0.0 | H40: 0.0
G41: 0.0 | H41: 0.0
G42: 0.0 | H42: 0.0
G43: 0.0 | H43: 0.0
G44: 0.0 | H44: 0.0
G45: 0.0 | H45: 0.0
G46: 0.0 | H46: 0.0
G47: 0.0 | H47: 0.0
G48: 0.0 | H48: 0.0
G49: 0.0 | H49: 0.0
G50: 0.0 | H50: 0.0
G51: 0.0 | H51: 0.0
B52: Sum endrede årlige driftskostnader | D52: =SUM(D7:D51) -> 0.0 | E52: 0.0 | F52: 0.0 | G52: 0.0 | H52: 0.0 | I52: 0.0 | J52: 0.0
B55: Sum | D55: =D52 -> 0.0 | E55: =E52 -> 0.0 | F55: 0.0 | G55: 0.0 | H55: 0.0 | I55: 0.0 | J55: 0.0
B57: Kommentarer

Sheet Viktig
B1: Viktig
B2: For å få dette regnearket til å fungere må "analysis toolpack" være installert. Dette kan gjøres ved å sjekke boksen "Tools/Add-Ins…" fra Excel sin hovedmeny. Dette må kanskje gjøres hver gang du starter Excel.

Sheet Forutsetninger
B1: Forutsetninger og begrensninger
B2: Estimatene i dette regnearket er basert på følgende forutsetninger og begrensninger. Alle endringer til dette kan påvirke estimatene. Opprinnelige forutsetninger og begrensninger finnes i prosjektoppdraget.
B3: Nr | C3: Kategori | D3: Beskrivelse | E3: Kommentarer
B4: 1
B5: 2
B6: 3
B7: 4
B8: 5
B9: 6
B10: 7
B11: 8
B12: 9
B13: 10
B14: 11
B15: 12
B16: 13
B17: 14
B18: 15
B19: 16
B20: 17
B21: 18
B22: 19
B23: 20
B24: 21
B25: 22
B26: 23
B27: 24
B28: 25
B29: 26
B30: 27
B31: 28
B32: 29
B33: 30

Sheet Prosjektkostnader
B1: ="Totalt prosjektestimat for prosjekt " &Oppsummering!B4:M4 -> Totalt prosjektestimat for prosjekt <Prosjektnavn>
B2: 2
D4: Lav | E4: Sannsynlig | F4: Høy | G4: Forventet | H4: Varians | I4: Avvik
D5: a | E5: m | F5: b | G5: E(x) | H5: V(x) | I5: a% | J5: b%
B6: Kostnadslinjer | C6: Beskrivelse | D6: MNOK | E6: MNOK | F6: MNOK
G7: =IF(AND(D7<>"",F7<>""),IF(E7<>"",CHOOSE($B$2,(D7+3*E7+F7)/5,(D7+4*E7+F7)/6),(D7+F7)/2),E7) -> 0.0 | H7: =CHOOSE($B$2,(F7-D7)^2/25,(F7-D7)^2/36) -> 0.0 | I7: =IF(D7<>0, (1-D7/E7),"") ->  | J7: =IF(D7<>0, (F7/E7-1),"") -> 
G8: =IF(AND(D8<>"",F8<>""),IF(E8<>"",CHOOSE($B$2,(D8+3*E8+F8)/5,(D8+4*E8+F8)/6),(D8+F8)/2),E8) -> 0.0 | H8: =CHOOSE($B$2,(F8-D8)^2/25,(F8-D8)^2/36) -> 0.0 | I8: =IF(D8<>0, (1-D8/E8),"") ->  | J8: =IF(D8<>0, (F8/E8-1),"") -> 
G9: =IF(AND(D9<>"",F9<>""),IF(E9<>"",CHOOSE($B$2,(D9+3*E9+F9)/5,(D9+4*E9+F9)/6),(D9+F9)/2),E9) -> 0.0 | H9: =CHOOSE($B$2,(F9-D9)^2/25,(F9-D9)^2/36) -> 0.0 | I9: =IF(D9<>0, (1-D9/E9),"") ->  | J9: =IF(D9<>0, (F9/E9-1),"") -> 
G10: 0.0 | H10: 0.0
G11: 0.0 | H11: 0.0
G12: 0.0 | H12: 0.0
G13: 0.0 | H13: 0.0
G14: 0.0 | H14: 0.0
G15: 0.0 | H15: 0.0
G16: 0.0 | H16: 0.0
G17: 0.0 | H17: 0.0
G18: 0.0 | H18: 0.0
G19: 0.0 | H19: 0.0
G20: 0.0 | H20: 0.0
G21: 0.0 | H21: 0.0
G22: 0.0 | H22: 0.0
G23: 0.0 | H23: 0.0
G24: 0.0 | H24: 0.0
G25: 0.0 | H25: 0.0
G26: 0.0 | H26: 0.0
G27: 0.0 | H27: 0.0
G28: 0.0 | H28: 0.0
G29: 0.0 | H29: 0.0
G30: 0.0 | H30: 0.0
G31: 0.0 | H31: 0.0
G32: 0.0 | H32: 0.0
G33: 0.0 | H33: 0.0
G34: 0.0 | H34: 0.0
G35: 0.0 | H35: 0.0
G36: 0.0 | H36: 0.0
G37: 0.0 | H37: 0.0
G38: 0.0 | H38: 0.0
G39: 0.0 | H39: 0.0
G40: 0.0 | H40: 0.0
G41: 0.0 | H41: 0.0
G42: 0.0 | H42: 0.0
G43: 0.0 | H43: 0.0
G44: 0.0 | H44: 0.0
G45: 0.0 | H45: 0.0
G46: 0.0 | H46: 0.0
G47: 0.0 | H47: 0.0
G48: 0.0 | H48: 0.0
G49: 0.0 | H49: 0.0
G50: 0.0 | H50: 0.0
G51: 0.0 | H51: 0.0
B52: Sum prosjektkostnader | D52: =SUM(D7:D51) -> 0.0 | E52: 0.0 | F52: 0.0 | G52: 0.0 | H52: 0.0 | I52: 0.0 | J52: 0.0
B55: Sum | D55: =D52 -> 0.0 | E55: =E52 -> 0.0 | F55: 0.0 | G55: 0.0 | H55: 0.0 | I55: 0.0 | J55: 0.0
B56: Usikkerhet (maks 10%) | G56: 0%
B57: Sum med usikkerhet | G57: =G55*(1+G56) -> 0.0
B59: Kommentarer

Sheet Oppsummering
B1: Kost/nytte analyse
F3: x
B4: <Prosjektnavn>
B7: Kort beskrivelse av prosjektet
C14: Totalkostnader (MNOK): | E14: =+Scoring!C22 -> 0.0
C15: Tilbakebetalingsperiode (måneder) | E15: =+Scoring!C33 -> 179
C16: IRR | E16: =IF(ISNUMBER('NPV & IRR detaljer'!H3),+Scoring!C34/100,"NB!") -> NB!
C17: NPV (MNOK) | E17: =+Scoring!C35 -> 
C20: Kompleksitet | E20: =+Scoring!C19 -> 0.0
C21: Virkning på forretningen | E21: =+Scoring!C37 -> 
C23: Prosjekttype 1) | E23: =IF(E21>4.999,IF(E20>4.999,"Hurtig gevinst","Strategisk"),IF(E20>4.999,"Forbedring","Bør ikke startes")) -> 
B26: Konklusjon
B34: 1) Definisjon av prosjekttyper
B35: Hurtig gevinst | C35: Score >=5 for Virkning på forretningen og >=5 for Kompleksitet
B36: Strategisk | C36: Score >=5 for Virkning på forretningen og <5 for Kompleksitet
B37: Forbedring | C37: Score <5 for Virkning på forretningen og >5 for Kompleksitet
B38: Bør ikke startes | C38: Score <5 for Virkning på forretningen og <5 for Kompleksitet

Sheet Gevinstestimat
B1: ="Årlige gevinster for " &Oppsummering!B4:M4 -> Årlige gevinster for <Prosjektnavn>
B2: 1
H3: Lav | I3: Sannsynlig | J3: Høy | K3: Forventet | L3: Varians | M3: Avvik
B4: Gevinster | H4: a | I4: m | J4: b | K4: E(x) | L4: V(x) | M4: a% | N4: b%
B6: Område | C6: Kort beskrivelse av gevinst | D6: Hvordan vil man realisere gevinsten? | E6: Relevant (J/N) | F6: Økonomisk (J/N) | G6: Målbar (J/N) | H6: MNOK | I6: MNOK | J6: MNOK
B7: Økonomi | C7: Unngå kostnader | F7: J | K7: =IF(E7="N",0,IF(AND(H7<>"",J7<>""),IF(I7<>"",CHOOSE($B$2,(H7+3*I7+J7)/5,(H7+4*I7+J7)/6),(H7+J7)/2),I7)) -> 0.0 | L7: =IF(E7="N",0,CHOOSE($B$2,(J7-H7)^2/25,(J7-H7)^2/36)) -> 0.0 | M7: =IF(E7="N","",IF(H7<>0, (1-H7/I7),"")) ->  | N7: =IF(E7="N","",IF(H7<>0, (J7/I7-1),"")) -> 
B8: Økonomi | C8: Økt inntjening pr aksje | F8: J | K8: =IF(E8="N",0,IF(AND(H8<>"",J8<>""),IF(I8<>"",CHOOSE($B$2,(H8+3*I8+J8)/5,(H8+4*I8+J8)/6),(H8+J8)/2),I8)) -> 0.0 | L8: =IF(E8="N",0,CHOOSE($B$2,(J8-H8)^2/25,(J8-H8)^2/36)) -> 0.0 | M8: =IF(E8="N","",IF(H8<>0, (1-H8/I8),"")) ->  | N8: =IF(E8="N","",IF(H8<>0, (J8/I8-1),"")) -> 
B9: Økonomi | C9: Økt cashflow | F9: J | K9: 0.0 | L9: 0.0
B10: Økonomi | C10: Økte marginer | F10: J | K10: 0.0 | L10: 0.0
B11: Økonomi | C11: Økt fortjeneste | F11: J | K11: 0.0 | L11: 0.0
B12: Økonomi | C12: Reduserte kostnader | F12: J | K12: 0.0 | L12: 0.0
B13: Økonomi | C13: Reduserte vedlikeholdskostnader | F13: J | K13: 0.0 | L13: 0.0
B14: Interne mål | C14: Forbedret sikkerhet mot systemsvindel | F14: J | K14: 0.0 | L14: 0.0
B15: Interne mål | C15: Redusert behov for høytlønnede arbeidere | F15: J | K15: 0.0 | L15: 0.0
B16: Interne mål | C16: Redusert avgang av personell | F16: J | K16: 0.0 | L16: 0.0
B17: Andre forretningsmål | C17: Prosjektet åpner for nye kunder og nye markeder | F17: J | K17: 0.0 | L17: 0.0
B18: Andre forretningsmål | C18: Løsningen gir firmaet redusert fare for rettslige kostnaden | F18: J | K18: 0.0 | L18: 0.0
B19: Salgs/markedsføringsmål | C19: Økt markedsandel | F19: J | K19: 0.0 | L19: 0.0
B20: Salgs/markedsføringsmål | C20: Økte salgsinntekter | F20: J | K20: 0.0 | L20: 0.0
B21: Funksjonelle/produktivitetsbesparende mål | C21: Økt prosesseringskapasitet/tidsbesparinger for brukerne (gjør samme jobben på kortere tid) | F21: N | K21: 0.0 | L21: 0.0
B22: Funksjonelle/produktivitetsbesparende mål | C22: Gjør det enklere å bruke beste praksis standarder | F22: N | K22: 0.0 | L22: 0.0
B23: Funksjonelle/produktivitetsbesparende mål | C23: Nye produkter og tjenester tilgjengelig | F23: N | K23: 0.0 | L23: 0.0
B24: Rykte | C24: Enklere å følge myndighetskrav | F24: N | K24: 0.0 | L24: 0.0
B25: Rykte | C25: Forbedret leveranseevne | F25: N | K25: 0.0 | L25: 0.0
B26: Rykte | C26: Bedre anseelse som en leder innenfor miljøvern | F26: N | K26: 0.0 | L26: 0.0
B27: Rykte | C27: Forbedret anseelse som en leder innen HSM | F27: N | K27: 0.0 | L27: 0.0
B28: Rykte | C28: Forbedret anseelse som leverandør av høy-teknologi | F28: N | K28: 0.0 | L28: 0.0
B29: Interne mål | C29: Bedre samsvar mellom virkelige og ideelle prosedyrer | F29: N | K29: 0.0 | L29: 0.0
B30: Interne mål | C30: Bedre systemsikkerhet for å forhindre misbruk | F30: N | K30: 0.0 | L30: 0.0
B31: Interne mål | C31: Bedre systemsikkerhet for å forhindre tap | F31: N | K31: 0.0 | L31: 0.0
B32: Interne mål | C32: Forbedret kommunikasjon innad i firmaet | F32: N | K32: 0.0 | L32: 0.0
B33: Interne mål | C33: Forbedrede arkiveringsfunksjoner/prosedyrer | F33: N | K33: 0.0 | L33: 0.0
B34: Interne mål | C34: Økt kunnskapsdeling internt i firmaet | F34: N | K34: 0.0 | L34: 0.0
B35: Interne mål | C35: Forbedret produktivitet og produktkvalitet | F35: N | K35: 0.0 | L35: 0.0
B36: Interne mål | C36: Forbedret firmahukommelse | F36: N | K36: 0.0 | L36: 0.0
B37: Interne mål | C37: Forbedret ansattmoral | F37: N | K37: 0.0 | L37: 0.0
B38: Interne mål | C38: Forbedret jobbtilfredsstillelse blant de ansatte | F38: N | K38: 0.0 | L38: 0.0
B39: Interne mål | C39: Forbedret individuell læring | F39: N | K39: 0.0 | L39: 0.0
B40: Interne mål | C40: Forbedret håndtering av firmahukommelsen | F40: N | K40: 0.0 | L40: 0.0
B41: Interne mål | C41: Økt tilgjengelighet på etterspurt ekspertise | F41: N | K41: 0.0 | L41: 0.0
B42: Interne mål | C42: Mer fleksibelt arbeidssted | F42: N | K42: 0.0 | L42: 0.0
B43: Interne mål | C43: Mer fleksibelt arbeidstidsskjema | F43: N | K43: 0.0 | L43: 0.0
B44: Interne mål | C44: Nye eller mer utfordrende karrierestiger for ansatte | F44: N | K44: 0.0 | L44: 0.0
B45: Interne mål | C45: Reduserte kostnader til utvikling av "neste prosjekt" | F45: N | K45: 0.0 | L45: 0.0
B46: Andre forretningsmål | C46: Styrking av strategiske allianser | F46: N | K46: 0.0 | L46: 0.0
B47: Andre forretningsmål | C47: Økt innovasjonsrate | F47: N | K47: 0.0 | L47: 0.0
B48: Produkt/tjenestemål | C48: Økt kundetilfredshet | F48: N | K48: 0.0 | L48: 0.0
B49: Funksjonelle/produktivitetsbesparende mål | C49: Hurtigere identifisering av gjentakende problemer, uavhengig av ressurser | F49: N | K49: 0.0 | L49: 0.0
B50: Funksjonelle/produktivitetsbesparende mål | C50: Redusere antall bid-waivers | F50: J | K50: 0.0 | L50: 0.0
B51: Interne mål | C51: Frigjøring av tid slik at brukerne kan gjøre proaktivt arbeid | F51: N | K51: 0.0 | L51: 0.0
B52: Interne mål | C52: Forenklede arbeidsprosesser gjennom predefinerte alarmer, sjekklister, maler etc | F52: N | K52: 0.0 | L52: 0.0
B53: <sett inn egne gevinster her> | K53: 0.0 | L53: 0.0
K54: 0.0 | L54: 0.0
K55: 0.0 | L55: 0.0
K56: 0.0 | L56: 0.0
K57: 0.0 | L57: 0.0
K58: 0.0 | L58: 0.0
K59: 0.0 | L59: 0.0
K60: =IF(E60="N",0,IF(AND(H60<>"",J60<>""),IF(I60<>"",CHOOSE($B$2,(H60+3*I60+J60)/5,(H60+4*I60+J60)/6),(H60+J60)/2),I60)) -> 0.0 | L60: =IF(E60="N",0,CHOOSE($B$2,(J60-H60)^2/25,(J60-H60)^2/36)) -> 0.0 | M60: =IF(E60="N","",IF(H60<>0, (1-H60/I60),"")) ->  | N60: =IF(E60="N","",IF(H60<>0, (J60/I60-1),"")) -> 
K61: 0.0 | L61: 0.0
K62: 0.0 | L62: 0.0
K63: 0.0 | L63: 0.0
K64: 0.0 | L64: 0.0
K65: 0.0 | L65: 0.0
B66: Sum gevinster | H66: =SUM(H7:H65) -> 0.0 | I66: 0.0 | J66: 0.0 | K66: 0.0 | L66: 0.0 | M66: 0.0 | N66: 0.0
B69: Sum | C69: Sum | H69: =H66 -> 0.0 | I69: =I66 -> 0.0 | J69: 0.0 | K69: 0.0 | L69: 0.0 | M69: 0.0 | N69: 0.0
B71: Kommentarer

Sheet Scoring
B1: Analyse av "Kompleksitet" og "Virkning på forretningen"
B2: =Oppsummering!B4:M4 -> <Prosjektnavn>
B4: Prosjektkompleksitet | C4: Verdi | D4: Enhet | E4: Vekt | F4: Score | G4: Vektet | H4: Type | I4: Kommentar
A5: 1 | B5: Hvor sikker er du på at omfanget er definert fullt ut? | D5: % | E5: 1.30 | F5: =IF(H5="EXP",(1/EXP(C5/3)),IF(H5="LIN",(+C5/100),IF(H5="LOG",IF(C5>0,(1-MAX(0,LOG(C5/100,3))),1),IF(H5="SIN",(SIN((C5-50)*3.14/100)),IF(H5="STEP-COS",(IF(C5<4,1,IF(C5>15,-1,COS((C5*10-30)*3.14/120)))),"Check type"))))) -> -1.00 | G5: =+E5*F5 -> -1.30 | H5: SIN
A6: 2 | B6: Har prosjektteamet nødvendig kompetanse for å gjennomføre arbeidet? | D6: % | E6: 1.20 | F6: -1.00 | G6: -1.20 | H6: SIN
A7: 3 | B7: Hvor mye av løsningen er i henhold til styrende dokumenter? | D7: % | E7: 0.60 | F7: -1.00 | G7: -0.60 | H7: SIN
A8: 4 | B8: Hvor mange prosjekter er man avhengig av for å sette løsningen i drift? | D8: #prosjekter | E8: 0.70 | F8: 1.00 | G8: 0.70 | H8: EXP
A9: 5 | B9: Hvor forberedt er organisasjonen på å starte å bruke løsningen? | D9: % | E9: 0.70 | F9: -1.00 | G9: =+E8*F8 -> 0.70 | H9: SIN
A10: 6 | B10: Hvor forberedt er organisasjonen på å ta ut gevinstene? | D10: % | E10: 0.80 | F10: -1.00 | G10: =+E9*F9 -> -0.70 | H10: SIN
A11: 7 | B11: Hvor mye av nødvendig forretningskompetanse er tilgjengelig i organisasjonen? | D11: % | E11: 0.50 | F11: 0.00 | G11: 0.00 | H11: LIN
A12: 8 | B12: Hvor sikker er du på tilgjengelighet på ressurser fra forretningen? | D12: % | E12: 0.90 | F12: 0.00 | G12: 0.00 | H12: LIN
A13: 9 | B13: Hvor sikker er du på tilgjengelighet på ressurser fra leverandørene? | D13: % | E13: 0.90 | F13: 0.00 | G13: 0.00 | H13: LIN
A14: 10 | B14: Hvor mange brukere må ha opplæring for å benytte løsningen? | D14: #brukere | E14: 0.50 | F14: 1.00 | G14: 0.50 | H14: LOG
A15: 11 | B15: Hvor mange brukere må informeres om implementering av løsningen? | D15: #brukere | E15: 0.30 | F15: 1.00 | G15: 0.30 | H15: LOG
A16: 12 | B16: Hvor mange dager opplæring forventes pr bruker? | D16: #dager | E16: 0.30 | F16: 1.00 | G16: 0.30 | H16: LOG
A17: 13 | B17: Prosjektets varighet | D17: måneder | E17: 0.60 | F17: 1.00 | G17: 0.60 | H17: STEP-COS
B19: Total score for prosjektkompleksitet | C19: =+MAX(0,G19) -> 0.0 | E19: =SUM(E5:E18) -> 9.3 | F19: =SUM(F5:F18) -> 0.00 | G19: =SUM(G5:G18) -> -0.70
B21: Virkning på forretningen | C21: Verdi | D21: Enhet | E21: Vekt | F21: Score | G21: Vektet | H21: Type | I21: Kommentar
A22: 1 | B22: Totalt prosjektestimat | C22: =Prosjektkostnader!G57 -> 0.00 | D22: MNOK
A23: 2 | B23: Estimerte endringer i årlige driftskostnader | C23: =Driftskostnader!G55 -> 0.00 | D23: MNOK
A24: 3 | B24: Antall måneder fra driftsstart til full cash-flow | D24: måneder
A25: 4 | B25: Effektiv levetid for prosjektproduktet | D25: måneder
A26: 5 | B26: Estimerte årlige gevinster (E(x)) | C26: =Gevinstestimat!K69 -> 0.00 | D26: MNOK
A27: 6 | B27: Økonomiske konsekvenser ved å ikke kjøre prosjektet | D27: MNOK
A28: 7 | B28: Andel av cash-flow direkte avhengig av denne delen av prosjektet | D28: %
A29: 8 | B29: Diskonteringsrente | C29: 8.0 | D29: %
A33: 9 | B33: Break-even etter | C33: =+'NPV & IRR detaljer'!J4 -> 179 | D33: måneder | E33: 0.25 | F33: =+MAX(0,MIN(10,24-C33)) -> 0.00 | G33: =+E33*F33 -> 0.00 | H33: LIN
A34: 10 | B34: IRR (internrente) | C34: =IF(ISNUMBER('NPV & IRR detaljer'!H3),+'NPV & IRR detaljer'!H4*100,"NB!") -> NB! | D34: % | E34: 0.50 | F34: =+MIN(10,(C34-'NPV & IRR detaljer'!G4)*200) ->  | G34: =+E34*F34 ->  | H34: LIN
A35: 11 | B35: NPV (netto nåverdi) | C35: ='NPV & IRR detaljer'!I4 ->  | D35: MNOK | E35: 0.25 | F35: =IF(C35>=0,10,0) ->  | G35: =+E35*F35 ->  | H35: LIN
B37: Total score på virkning på forretningen | C37: =+MIN(10,MAX(0,G37)) ->  | G37: =SUM(G22:G35) -> 

Sheet NPV & IRR detaljer
C1: Årlig | D1: Månedlig
B2: Totale prosjektkostnader | C2: =Scoring!C22 -> 0 | D2: =+C2/C4 ->  | E2: MNOK | G2: Diskonteringsrente | H2: IRR | I2: NPV | J2: Tilbakebetalingsperiode
B3: Årlige driftskostnader | C3: =+Scoring!C23 -> 0 | D3: =+C3/12 -> 0.00 | E3: MNOK | G3: =NOMINAL(G4/12,12) -> 0.7% | H3: =IRR(OFFSET(F11,0,0,C8-1,1),0.01) ->  | I3: =NPV(G3,OFFSET(F11,0,0,C8,1)) -> 
B4: Prosjektets varighet | C4: =Scoring!C17 -> 0 | D4: =+C4+1 -> 1 | E4: måneder | G4: =Scoring!C29/100 -> 8.0% | H4: =IF(ISNUMBER(H3),IF(+H3>0,EFFECT(H3*12,12),EFFECT(-1*H3*12,12)*-1),"NB!") -> NB! | I4: =+I3 ->  | J4: =+MAX(H11:H130) -> 179.18
B5: Gevinster | C5: =+(Scoring!C26+Scoring!C27)*Scoring!C28/100 -> 0 | D5: =+C5/12 -> 0.00 | E5: MNOK/mnd
B6: Fullt gevinstuttak etter | C6: =Scoring!C24 -> 0 | D6: =+D5/C6 ->  | E6: MNOK/mnd
B7: Levetid | C7: =Scoring!C25 -> 0 | E7: måneder
B8: Varighet | C8: =+C4+C7 -> 0 | E8: måneder
B10: Måned | C10: Prosjektkostnader | D10: Driftskostnader | E10: Gevinster | F10: Månedlig | G10: Akkumulert | H10: Intercept
B11: 1 | C11: 0 | D11: 0 | E11: 0 | F11: -0.05 | G11: -0 | H11: 124.12
B12: 2 | C12: 0 | D12: 0 | E12: 0 | F12: -0.05 | G12: -0 | H12: 124.60
B13: 3 | C13: 0 | D13: 0 | E13: 0 | F13: -0.05 | G13: -0 | H13: 125.09
B14: 4 | C14: 0 | D14: 0 | E14: 0 | F14: -0.05 | G14: -0 | H14: 125.58
B15: 5 | C15: 0 | D15: 0 | E15: 0 | F15: -0.05 | G15: -0 | H15: 126.06
B16: 6 | C16: 0 | D16: 0 | E16: 0 | F16: -0.05 | G16: -0 | H16: 126.55
B17: 7 | C17: 0 | D17: 0 | E17: 0 | F17: -0.05 | G17: -0 | H17: 127.03
B18: 8 | C18: 0 | D18: 0 | E18: 0 | F18: -0.05 | G18: -0 | H18: 127.52
B19: 9 | C19: 0 | D19: 0 | E19: 0 | F19: -0.05 | G19: -0 | H19: 128.00
B20: 10 | C20: 0 | D20: 0 | E20: 0 | F20: -0.05 | G20: -1 | H20: 128.49
B21: 11 | C21: 0 | D21: 0 | E21: 0 | F21: -0.05 | G21: -1 | H21: 128.97
B22: 12 | C22: 0 | D22: 0 | E22: 0 | F22: -0.05 | G22: -1 | H22: 129.45
B23: 13 | C23: 0 | D23: 0 | E23: 0 | F23: -0.05 | G23: -1 | H23: 129.94
B24: 14 | C24: 0 | D24: 0 | E24: 0 | F24: -0.05 | G24: -1 | H24: 130.42
B25: 15 | C25: 0 | D25: 0 | E25: 0 | F25: -0.05 | G25: -1 | H25: 130.90
B26: 16 | C26: 0 | D26: 0 | E26: 0 | F26: -0.05 | G26: -1 | H26: 131.38
B27: 17 | C27: 0 | D27: 0 | E27: 0 | F27: -0.05 | G27: -1 | H27: 131.86
B28: 18 | C28: 0 | D28: 0 | E28: 0 | F28: -0.05 | G28: -1 | H28: 132.35
B29: 19 | C29: 0 | D29: 0 | E29: 0 | F29: -0.05 | G29: -1 | H29: 132.83
B30: 20 | C30: 0 | D30: 0 | E30: 0 | F30: -0.05 | G30: -1 | H30: 133.31
B31: 21 | C31: 0 | D31: 0 | E31: 0 | F31: -0.05 | G31: -1 | H31: 133.79
B32: 22 | C32: 0 | D32: 0 | E32: 0 | F32: -0.05 | G32: -1 | H32: 134.27
B33: 23 | C33: 0 | D33: 0 | E33: 0 | F33: -0.05 | G33: -1 | H33: 134.75
B34: 24 | C34: 0 | D34: 0 | E34: 0 | F34: -0.05 | G34: -1 | H34: 135.23
B35: 25 | C35: 0 | D35: 0 | E35: 0 | F35: -0.05 | G35: -1 | H35: 135.70
B36: 26 | C36: 0 | D36: 0 | E36: 0 | F36: -0.05 | G36: -1 | H36: 136.18
B37: 27 | C37: 0 | D37: 0 | E37: 0 | F37: -0.05 | G37: -1 | H37: 136.66
B38: 28 | C38: 0 | D38: 0 | E38: 0 | F38: -0.05 | G38: -1 | H38: 137.14
B39: 29 | C39: 0 | D39: 0 | E39: 0 | F39: -0.05 | G39: -1 | H39: 137.61
B40: 30 | C40: 0 | D40: 0 | E40: 0 | F40: -0.05 | G40: -2 | H40: 138.09
B41: 31 | C41: 0 | D41: 0 | E41: 0 | F41: -0.05 | G41: -2 | H41: 138.57
B42: 32 | C42: 0 | D42: 0 | E42: 0 | F42: -0.05 | G42: -2 | H42: 139.04
B43: 33 | C43: 0 | D43: 0 | E43: 0 | F43: -0.05 | G43: -2 | H43: 139.52
B44: 34 | C44: 0 | D44: 0 | E44: 0 | F44: -0.05 | G44: -2 | H44: 139.99
B45: 35 | C45: 0 | D45: 0 | E45: 0 | F45: -0.05 | G45: -2 | H45: 140.47
B46: 36 | C46: 0 | D46: 0 | E46: 0 | F46: -0.05 | G46: -2 | H46: 140.94
B47: 37 | C47: 0 | D47: 0 | E47: 0 | F47: -0.05 | G47: -2 | H47: 141.42
B48: 38 | C48: 0 | D48: 0 | E48: 0 | F48: -0.05 | G48: -2 | H48: 141.89
B49: 39 | C49: 0 | D49: 0 | E49: 0 | F49: -0.05 | G49: -2 | H49: 142.36
B50: 40 | C50: 0 | D50: 0 | E50: 0 | F50: -0.05 | G50: -2 | H50: 142.84
B51: 41 | C51: 0 | D51: 0 | E51: 0 | F51: -0.05 | G51: -2 | H51: 143.31
B52: 42 | C52: 0 | D52: 0 | E52: 0 | F52: -0.05 | G52: -2 | H52: 143.78
B53: 43 | C53: 0 | D53: 0 | E53: 0 | F53: -0.05 | G53: -2 | H53: 144.25
B54: 44 | C54: 0 | D54: 0 | E54: 0 | F54: -0.05 | G54: -2 | H54: 144.72
B55: 45 | C55: 0 | D55: 0 | E55: 0 | F55: -0.05 | G55: -2 | H55: 145.19
B56: 46 | C56: 0 | D56: 0 | E56: 0 | F56: -0.05 | G56: -2 | H56: 145.66
B57: 47 | C57: 0 | D57: 0 | E57: 0 | F57: -0.05 | G57: -2 | H57: 146.13
B58: 48 | C58: 0 | D58: 0 | E58: 0 | F58: -0.05 | G58: -2 | H58: 146.60
B59: 49 | C59: 0 | D59: 0 | E59: 0 | F59: -0.05 | G59: -2 | H59: 147.07
B60: 50 | C60: 0 | D60: 0 | E60: 0 | F60: -0.05 | G60: -3 | H60: 147.54
B61: 51 | C61: 0 | D61: 0 | E61: 0 | F61: -0.05 | G61: -3 | H61: 148.01
B62: 52 | C62: 0 | D62: 0 | E62: 0 | F62: -0.05 | G62: -3 | H62: 148.48
B63: 53 | C63: 0 | D63: 0 | E63: 0 | F63: -0.05 | G63: -3 | H63: 148.94
B64: 54 | C64: 0 | D64: 0 | E64: 0 | F64: -0.05 | G64: -3 | H64: 149.41
B65: 55 | C65: 0 | D65: 0 | E65: 0 | F65: -0.05 | G65: -3 | H65: 149.88
B66: 56 | C66: 0 | D66: 0 | E66: 0 | F66: -0.05 | G66: -3 | H66: 150.34
B67: 57 | C67: 0 | D67: 0 | E67: 0 | F67: -0.05 | G67: -3 | H67: 150.81
B68: 58 | C68: 0 | D68: 0 | E68: 0 | F68: -0.05 | G68: -3 | H68: 151.27
B69: 59 | C69: 0 | D69: 0 | E69: 0 | F69: -0.05 | G69: -3 | H69: 151.74
B70: 60 | C70: 0 | D70: 0 | E70: 0 | F70: -0.05 | G70: -3 | H70: 152.20
B71: 61 | C71: 0 | D71: 0 | E71: 0 | F71: -0.05 | G71: -3 | H71: 152.66
B72: 62 | C72: 0 | D72: 0 | E72: 0 | F72: -0.05 | G72: -3 | H72: 153.13
B73: 63 | C73: 0 | D73: 0 | E73: 0 | F73: -0.05 | G73: -3 | H73: 153.59
B74: 64 | C74: 0 | D74: 0 | E74: 0 | F74: -0.05 | G74: -3 | H74: 154.05
B75: 65 | C75: 0 | D75: 0 | E75: 0 | F75: -0.05 | G75: -3 | H75: 154.51
B76: 66 | C76: 0 | D76: 0 | E76: 0 | F76: -0.05 | G76: -3 | H76: 154.98
B77: 67 | C77: 0 | D77: 0 | E77: 0 | F77: -0.05 | G77: -3 | H77: 155.44
B78: 68 | C78: 0 | D78: 0 | E78: 0 | F78: -0.05 | G78: -3 | H78: 155.90
B79: 69 | C79: 0 | D79: 0 | E79: 0 | F79: -0.05 | G79: -3 | H79: 156.36
B80: 70 | C80: 0 | D80: 0 | E80: 0 | F80: -0.05 | G80: -4 | H80: 156.82
B81: 71 | C81: 0 | D81: 0 | E81: 0 | F81: -0.05 | G81: -4 | H81: 157.28
B82: 72 | C82: 0 | D82: 0 | E82: 0 | F82: -0.05 | G82: -4 | H82: 157.73
B83: 73 | C83: 0 | D83: 0 | E83: 0 | F83: -0.05 | G83: -4 | H83: 158.19
B84: 74 | C84: 0 | D84: 0 | E84: 0 | F84: -0.05 | G84: -4 | H84: 158.65
B85: 75 | C85: 0 | D85: 0 | E85: 0 | F85: -0.05 | G85: -4 | H85: 159.11
B86: 76 | C86: 0 | D86: 0 | E86: 0 | F86: -0.05 | G86: -4 | H86: 159.56
B87: 77 | C87: 0 | D87: 0 | E87: 0 | F87: -0.05 | G87: -4 | H87: 160.02
B88: 78 | C88: 0 | D88: 0 | E88: 0 | F88: -0.05 | G88: -4 | H88: 160.48
B89: 79 | C89: 0 | D89: 0 | E89: 0 | F89: -0.05 | G89: -4 | H89: 160.93
B90: 80 | C90: 0 | D90: 0 | E90: 0 | F90: -0.05 | G90: -4 | H90: 161.39
B91: 81 | C91: 0 | D91: 0 | E91: 0 | F91: -0.05 | G91: -4 | H91: 161.84
B92: 82 | C92: 0 | D92: 0 | E92: 0 | F92: -0.05 | G92: -4 | H92: 162.30
B93: 83 | C93: 0 | D93: 0 | E93: 0 | F93: -0.05 | G93: -4 | H93: 162.75
B94: 84 | C94: 0 | D94: 0 | E94: 0 | F94: -0.05 | G94: -4 | H94: 163.20
B95: 85 | C95: 0 | D95: 0 | E95: 0 | F95: -0.05 | G95: -4 | H95: 163.65
B96: 86 | C96: 0 | D96: 0 | E96: 0 | F96: -0.05 | G96: -4 | H96: 164.11
B97: 87 | C97: 0 | D97: 0 | E97: 0 | F97: -0.05 | G97: -4 | H97: 164.56
B98: 88 | C98: 0 | D98: 0 | E98: 0 | F98: -0.05 | G98: -4 | H98: 165.01
B99: 89 | C99: 0 | D99: 0 | E99: 0 | F99: -0.05 | G99: -4 | H99: 165.46
B100: 90 | C100: 0 | D100: 0 | E100: 0 | F100: -0.05 | G100: -4 | H100: 165.91
B101: 91 | C101: 0 | D101: 0 | E101: 0 | F101: -0.05 | G101: -5 | H101: 166.36
B102: 92 | C102: 0 | D102: 0 | E102: 0 | F102: -0.05 | G102: -5 | H102: 166.81
B103: 93 | C103: 0 | D103: 0 | E103: 0 | F103: -0.05 | G103: -5 | H103: 167.26
B104: 94 | C104: 0 | D104: 0 | E104: 0 | F104: -0.05 | G104: -5 | H104: 167.71
B105: 95 | C105: 0 | D105: 0 | E105: 0 | F105: -0.05 | G105: -5 | H105: 168.15
B106: 96 | C106: 0 | D106: 0 | E106: 0 | F106: -0.05 | G106: -5 | H106: 168.60
B107: 97 | C107: 0 | D107: 0 | E107: 0 | F107: -0.05 | G107: -5 | H107: 169.05
B108: 98 | C108: 0 | D108: 0 | E108: 0 | F108: -0.05 | G108: -5 | H108: 169.49
B109: 99 | C109: 0 | D109: 0 | E109: 0 | F109: -0.05 | G109: -5 | H109: 169.94
B110: 100 | C110: 0 | D110: 0 | E110: 0 | F110: -0.05 | G110: -5 | H110: 170.38
B111: 101 | C111: 0 | D111: 0 | E111: 0 | F111: -0.05 | G111: -5 | H111: 170.83
B112: 102 | C112: 0 | D112: 0 | E112: 0 | F112: -0.05 | G112: -5 | H112: 171.27
B113: 103 | C113: 0 | D113: 0 | E113: 0 | F113: -0.05 | G113: -5 | H113: 171.72
B114: 104 | C114: 0 | D114: 0 | E114: 0 | F114: -0.05 | G114: -5 | H114: 172.16
B115: 105 | C115: 0 | D115: 0 | E115: 0 | F115: -0.05 | G115: -5 | H115: 172.60
B116: 106 | C116: 0 | D116: 0 | E116: 0 | F116: -0.05 | G116: -5 | H116: 173.04
B117: 107 | C117: 0 | D117: 0 | E117: 0 | F117: -0.05 | G117: -5 | H117: 173.49
B118: 108 | C118: 0 | D118: 0 | E118: 0 | F118: -0.05 | G118: -5 | H118: 173.93
B119: 109 | C119: 0 | D119: 0 | E119: 0 | F119: -0.05 | G119: -5 | H119: 174.37
B120: 110 | C120: 0 | D120: 0 | E120: 0 | F120: -0.05 | G120: -5 | H120: 174.81
B121: 111 | C121: 0 | D121: 0 | E121: 0 | F121: -0.05 | G121: -6 | H121: 175.25
B122: 112 | C122: 0 | D122: 0 | E122: 0 | F122: -0.05 | G122: -6 | H122: 175.68
B123: 113 | C123: 0 | D123: 0 | E123: 0 | F123: -0.05 | G123: -6 | H123: 176.12
B124: 114 | C124: 0 | D124: 0 | E124: 0 | F124: -0.05 | G124: -6 | H124: 176.56
B125: 115 | C125: 0 | D125: 0 | E125: 0 | F125: -0.05 | G125: -6 | H125: 177.00
B126: 116 | C126: 0 | D126: 0 | E126: 0 | F126: -0.05 | G126: -6 | H126: 177.43
B127: 117 | C127: 0 | D127: 0 | E127: 0 | F127: -0.05 | G127: -6 | H127: 177.87
B128: 118 | C128: 0 | D128: 0 | E128: 0 | F128: -0.05 | G128: -6 | H128: 178.31
B129: 119 | C129: 0 | D129: 0 | E129: 0 | F129: -0.05 | G129: -6 | H129: 178.74
B130: 120 | C130: 0 | D130: 0 | E130: 0 | F130: -0.05 | G130: -6 | H130: 179.18
B131: 121 | C131: 0 | D131: 0 | E131: 0 | F131: -0.05 | G131: -6 | H131: 179.61
B132: 122 | C132: 0 | D132: 0 | E132: 0 | F132: -0.05 | G132: -6 | H132: 180.04
B133: 123 | C133: 0 | D133: 0 | E133: 0 | F133: -0.05 | G133: -6 | H133: 180.47
B134: 124 | C134: 0 | D134: 0 | E134: 0 | F134: -0.05 | G134: -6 | H134: 180.91
B135: 125 | C135: 0 | D135: 0 | E135: 0 | F135: -0.05 | G135: -6 | H135: 181.34
B136: 126 | C136: 0 | D136: 0 | E136: 0 | F136: -0.05 | G136: -6 | H136: 181.77
B137: 127 | C137: 0 | D137: 0 | E137: 0 | F137: -0.05 | G137: -6 | H137: 182.20
B138: 128 | C138: 0 | D138: 0 | E138: 0 | F138: -0.05 | G138: -6 | H138: 182.63
B139: 129 | C139: 0 | D139: 0 | E139: 0 | F139: -0.05 | G139: -6 | H139: 183.06
B140: 130 | C140: 0 | D140: 0 | E140: 0 | F140: -0.05 | G140: -6 | H140: 183.49
B141: 131 | C141: 0 | D141: 0 | E141: 0 | F141: -0.05 | G141: -7 | H141: 183.91
B142: 132 | C142: 0 | D142: 0 | E142: 0 | F142: -0.05 | G142: -7 | H142: 184.34
B143: 133 | C143: 0 | D143: 0 | E143: 0 | F143: -0.05 | G143: -7 | H143: 184.77
B144: 134 | C144: 0 | D144: 0 | E144: 0 | F144: -0.05 | G144: -7 | H144: 185.19
B145: 135 | C145: 0 | D145: 0 | E145: 0 | F145: -0.05 | G145: -7 | H145: 185.62
B146: 136 | C146: 0 | D146: 0 | E146: 0 | F146: -0.05 | G146: -7 | H146: 186.04
B147: 137 | C147: 0 | D147: 0 | E147: 0 | F147: -0.05 | G147: -7 | H147: 186.47
B148: 138 | C148: 0 | D148: 0 | E148: 0 | F148: -0.05 | G148: -7 | H148: 186.89
B149: 139 | C149: 0 | D149: 0 | E149: 0 | F149: -0.05 | G149: -7 | H149: 187.31
B150: 140 | C150: 0 | D150: 0 | E150: 0 | F150: -0.05 | G150: -7 | H150: 187.73
B151: 141 | C151: 0 | D151: 0 | E151: 0 | F151: -0.05 | G151: -7 | H151: 188.15
B152: 142 | C152: 0 | D152: 0 | E152: 0 | F152: -0.05 | G152: -7 | H152: 188.57
B153: 143 | C153: 0 | D153: 0 | E153: 0 | F153: -0.05 | G153: -7 | H153: 188.99
B154: 144 | C154: 0 | D154: 0 | E154: 0 | F154: -0.05 | G154: -7 | H154: 189.41
B155: 145 | C155: 0 | D155: 0 | E155: 0 | F155: -0.05 | G155: -7 | H155: 189.83
B156: 146 | C156: 0 | D156: 0 | E156: 0 | F156: -0.05 | G156: -7 | H156: 190.24
B157: 147 | C157: 0 | D157: 0 | E157: 0 | F157: -0.05 | G157: -7 | H157: 190.66
B158: 148 | C158: 0 | D158: 0 | E158: 0 | F158: -0.05 | G158: -7 | H158: 191.08
B159: 149 | C159: 0 | D159: 0 | E159: 0 | F159: -0.05 | G159: -7 | H159: 191.49
B160: 150 | C160: 0 | D160: 0 | E160: 0 | F160: -0.05 | G160: -7 | H160: 191.90
B161: 151 | C161: 0 | D161: 0 | E161: 0 | F161: -0.05 | G161: -8 | H161: 192.32
B162: 152 | C162: 0 | D162: 0 | E162: 0 | F162: -0.05 | G162: -8 | H162: 192.73
B163: 153 | C163: 0 | D163: 0 | E163: 0 | F163: -0.05 | G163: -8 | H163: 193.14
B164: 154 | C164: 0 | D164: 0 | E164: 0 | F164: -0.05 | G164: -8 | H164: 193.55
B165: 155 | C165: 0 | D165: 0 | E165: 0 | F165: -0.05 | G165: -8 | H165: 193.95
B166: 156 | C166: 0 | D166: 0 | E166: 0 | F166: -0.05 | G166: -8 | H166: 194.36
B167: 157 | C167: 0 | D167: 0 | E167: 0 | F167: -0.05 | G167: -8 | H167: 194.77
B168: 158 | C168: 0 | D168: 0 | E168: 0 | F168: -0.05 | G168: -8 | H168: 195.17
B169: 159 | C169: 0 | D169: 0 | E169: 0 | F169: -0.05 | G169: -8 | H169: 195.58
B170: 160 | C170: 0 | D170: 0 | E170: 0 | F170: -0.05 | G170: -8 | H170: 195.98
B171: 161 | C171: 0 | D171: 0 | E171: 0 | F171: -0.05 | G171: -8 | H171: 196.38
B172: 162 | C172: 0 | D172: 0 | E172: 0 | F172: -0.05 | G172: -8 | H172: 196.78
B173: 163 | C173: 0 | D173: 0 | E173: 0 | F173: -0.05 | G173: -8 | H173: 197.18
B174: 164 | C174: 0 | D174: 0 | E174: 0 | F174: -0.05 | G174: -8 | H174: 197.58
B175: 165 | C175: 0 | D175: 0 | E175: 0 | F175: -0.05 | G175: -8 | H175: 197.97
B176: 166 | C176: 0 | D176: 0 | E176: 0 | F176: -0.05 | G176: -8 | H176: 198.37
B177: 167 | C177: 0 | D177: 0 | E177: 0 | F177: -0.05 | G177: -8 | H177: 198.76
B178: 168 | C178: 0 | D178: 0 | E178: 0 | F178: -0.05 | G178: -8 | H178: 199.15
B179: 169 | C179: 0 | D179: 0 | E179: 0 | F179: -0.05 | G179: -8 | H179: 199.54
B180: 170 | C180: 0 | D180: 0 | E180: 0 | F180: -0.05 | G180: -8 | H180: 199.93
B181: 171 | C181: 0 | D181: 0 | E181: 0 | F181: -0.05 | G181: -9 | H181: 200.32
B182: 172 | C182: 0 | D182: 0 | E182: 0 | F182: -0.05 | G182: -9 | H182: 200.70
B183: 173 | C183: 0 | D183: 0 | E183: 0 | F183: -0.05 | G183: -9 | H183: 201.08
B184: 174 | C184: 0 | D184: 0 | E184: 0 | F184: -0.05 | G184: -9 | H184: 201.46
B185: 175 | C185: 0 | D185: 0 | E185: 0 | F185: -0.05 | G185: -9 | H185: 201.84
B186: 176 | C186: 0 | D186: 0 | E186: 0 | F186: -0.05 | G186: -9 | H186: 202.21
B187: 177 | C187: 0 | D187: 0 | E187: 0 | F187: -0.05 | G187: -9 | H187: 202.58
B188: 178 | C188: 0 | D188: 0 | E188: 0 | F188: -0.05 | G188: -9 | H188: 202.95
B189: 179 | C189: 0 | D189: 0 | E189: 0 | F189: -0.05 | G189: -9 | H189: 203.32
B190: 180 | C190: 0 | D190: 0 | E190: 0 | F190: -0.05 | G190: -9 | H190: 203.68
B191: 181 | C191: 0 | D191: 0 | E191: 0 | F191: -0.05 | G191: -9 | H191: 204.04
B192: 182 | C192: 0 | D192: 0 | E192: 0 | F192: -0.05 | G192: -9 | H192: 204.39
B193: 183 | C193: 0 | D193: 0 | E193: 0 | F193: -0.05 | G193: -9 | H193: 204.74
B194: 184 | C194: 0 | D194: 0 | E194: 0 | F194: -0.05 | G194: -9 | H194: 205.09
B195: 185 | C195: 0 | D195: 0 | E195: 0 | F195: -0.05 | G195: -9 | H195: 205.43
B196: 186 | C196: 0 | D196: 0 | E196: 0 | F196: -0.05 | G196: -9 | H196: 205.76
B197: 187 | C197: 0 | D197: 0 | E197: 0 | F197: -0.05 | G197: -9 | H197: 206.09
B198: 188 | C198: 0 | D198: 0 | E198: 0 | F198: -0.05 | G198: -9 | H198: 206.42
B199: 189 | C199: 0 | D199: 0 | E199: 0 | F199: -0.05 | G199: -9 | H199: 206.73
B200: 190 | C200: 0 | D200: 0 | E200: 0 | F200: -0.05 | G200: -10 | H200: 207.04
B201: 191 | C201: 0 | D201: 0 | E201: 0 | F201: -0.05 | G201: -10 | H201: 207.34
... 69 more rows

Sheet Factors (hidden)
A2: Percent | B2: Linear (int) | C2: Peek (ext) | D2: Sinus
A3: 0 | B3: =+A3/100 -> 0.00 | C3: =+(A3-50)*(A3-50)/2500 -> 1 | D3: =SIN((A3-50)*3.14/100) -> -1.00
A4: 10 | B4: =+A4/100 -> 0.10 | C4: =+(A4-50)*(A4-50)/2500 -> 0.64 | D4: -0.95
A5: 20 | B5: 0.20 | C5: 0.36 | D5: -0.81
A6: 30 | B6: 0.30 | C6: 0.16 | D6: -0.59
A7: 40 | B7: 0.40 | C7: 0.04 | D7: -0.31
A8: 50 | B8: 0.50 | C8: 0 | D8: 0.00
A9: 60 | B9: 0.60 | C9: 0.04 | D9: 0.31
A10: 70 | B10: 0.70 | C10: 0.16 | D10: 0.59
A11: 80 | B11: 0.80 | C11: 0.36 | D11: 0.81
A12: 90 | B12: 0.90 | C12: 0.64 | D12: 0.95
A13: 100 | B13: 1.00 | C13: 1 | D13: 1.00
A15: Number | B15: Exp (int,proj) | C15: Step-log (dur) | D15: StepCosinus
A16: 0 | B16: =1/EXP(A16/3) -> 1.00 | C16: 1 | D16: =IF(A16<4,1,IF(A16>15,-1,COS((A16*10-30)*3.14/120))) -> 1.00
A17: 1 | B17: =1/EXP(A17/3) -> 0.72 | C17: =+MAX(-2,1-MAX(0,LOG(A17/3,2))) -> 1.00 | D17: =IF(A17<4,1,IF(A17>15,-1,COS((A17*10-30)*3.14/120))) -> 1.00
A18: 2 | B18: 0.51 | C18: 1.00 | D18: 1.00
A19: 3 | B19: 0.37 | C19: 1.00 | D19: 1.00
A20: 4 | B20: 0.26 | C20: 0.58 | D20: 0.97
A21: 5 | B21: 0.19 | C21: 0.26 | D21: 0.87
A22: 6 | B22: 0.14 | C22: 0.00 | D22: 0.71
A23: 7 | B23: 0.10 | C23: -0.22 | D23: 0.50
A24: 8 | B24: 0.07 | C24: -0.42 | D24: 0.26
A25: 9 | B25: 0.05 | C25: -0.58 | D25: 0.00
A26: 10 | B26: 0.04 | C26: -0.74 | D26: -0.26
A27: 11 | B27: 0.03 | C27: =+MAX(-2,1-MAX(0,LOG(A27/3,2))) -> -0.87 | D27: -0.50
A28: 12 | B28: 0.02 | C28: -1.00 | D28: -0.71
A29: 13 | B29: 0.01 | C29: -1.12 | D29: -0.87
A30: 14 | B30: 0.01 | C30: -1.22 | D30: -0.97
A31: 15 | B31: 0.01 | C31: -1.32 | D31: -1.00
A32: 16 | B32: 0.00 | C32: -1.42 | D32: -1.00
A33: 17 | B33: 0.00 | C33: -1.50 | D33: -1.00
A34: 18 | B34: 0.00 | C34: -1.58 | D34: -1.00
A35: 19 | B35: 0.00 | C35: -1.66 | D35: -1.00
A36: 20 | B36: 0.00 | C36: -1.74 | D36: -1.00
A38: Users/kEuro | B38: log1 (users)
A39: 10 | B39: =1-MAX(0,LOG(A39/100,3)) -> 1.00
A40: 20 | B40: =1-MAX(0,LOG(A40/100,3)) -> 1.00
A41: 50 | B41: 1.00
A42: 100 | B42: 1.00
A43: 200 | B43: 0.37
A44: 300 | B44: 0.00
A45: 500 | B45: -0.46
A46: 1000 | B46: -1.10
A47: 2000 | B47: -1.73
A48: 5000 | B48: -2.56
A59: Type
A60: EXP
A61: LIN
A62: LOG
A63: SIN
A64: STEP-COS
